Cogmind - Beta 12 @@@ ROGUE MODE // 2023.04.28 @ 12:33:26 Player: Exp. Geonium Core Result: Destroyed by G-50 Soldier with Heavy Laser Performance ------------- Evolutions (4) 2000 Regions Visited (21) 4200 Robots Destroyed (161) 805 Value Destroyed (5291) 5291 Prototype IDs (242) 4840 Alien Tech Used (0) 0 Bonus (7677) 7677 TOTAL SCORE: 24813 Bonus ------- High Alert Combat Kills 165 Follower Combat Kills 270 Entered Garrisons 1000 Used RIF Installer 3500 Aligned with FarCom 300 Met Data Miner 300 Used Data Conduit 3000 Friendly Fire -858 Cogmind --------- Core Integrity 0/850 Matter 9/300 Energy 99/100 System Corruption 1% Temperature Cool (9) Movement Core (50) Location -6/Garrison Parts ------- > --- POWER (1) -------- (None) > --- PROPULSION (2) --- Combat Antigrav System > --- UTILITY (10) ----- Improved Targeting Computer Launcher Guidance Computer Target Analyzer System Mapper > --- WEAPON (2) ------- (None) > --- INVENTORY (5) ---- Light Nuclear Core Light Particle Reactor System Restoration Module Coil Gun Remote Datajack Peak State ------------ > --- POWER ------------ Improved Deuterium Engine > --- PROPULSION ------- Field Propulsion Array > --- UTILITY ---------- Improved Heat Sink High-capacity Storage Unit Launcher Guidance Computer Hardened Heavy Armor Plating System Mapper Quantum Router Relay Coupler [NC] > --- WEAPON ----------- Rocket Array Makeshift Spear > --- INVENTORY -------- Wheel Compact Wheel Improved EM Pulse Cannon Enhanced Autogun Enhanced Autogun Heavy Rocket Launcher Improved Datajack Remote Datajack Remote Datajack Remote Datajack Chainsword [Rating: 66] Favorites ----------- Power Antimatter Reactor Engine Improved Ion Engine Power Core Light Nuclear Core Reactor Antimatter Reactor Propulsion Light Treads Treads Light Treads Leg Potential Leg Wheel Wheel Hover Unit Gravmag System Flight Unit Biomechanical Wings Utility Launcher Guidance Computer Device Improved Heat Sink Storage High-capacity Storage Unit Processor Launcher Guidance Computer Hackware Relay Coupler [NC] Protection Hardened Heavy Armor Plating Weapon Enhanced Autogun Energy Gun AWS/Thermal Energy Cannon Improved EM Pulse Cannon Ballistic Gun Enhanced Autogun Ballistic Cannon Light Cannon Launcher Rocket Array Special Weapon Remote Datajack Impact Weapon Hammer Slashing Weapon Chainsword Piercing Weapon Makeshift Spear Special Melee Weapon Improved Datajack Build | -11 -10 -10 -9 -9 -9 -8 -8 -8 -8 -8 -7 -7 -7 -7 -7 -7 -6 -6 -6 -6 -6 ------- Run | Jun Mat Min Mat Min Exi Min Mat Gar Mat Gar Fac Gar Fac Low Low Dat Pro Fac Gar Fac Gar Slots Evolved 8 | . . . 2 . . . 2 . . . 2 . . . . . . 2 . . . Power . | . . . . . . . . . . . . . . . . . . . . . . Propulsion . | . . . . . . . . . . . . . . . . . . . . . . Utility 8 | . . . 2 . . . 2 . . . 2 . . . . . . 2 . . . Weapon . | . . . . . . . . . . . . . . . . . . . . . . Parts Attached 197 | . 4 7 13 4 3 2 7 17 3 10 43 23 24 6 6 6 1 6 4 6 2 Power 12 | . . 1 1 . . 1 . 2 . 1 1 2 1 . . 1 . 1 . . . Engine 6 | . . 1 1 . . . . 1 . 1 1 . . . . 1 . . . . . Core 4 | . . . . . . 1 . 1 . . . 1 . . . . . 1 . . . Reactor 2 | . . . . . . . . . . . . 1 1 . . . . . . . . Propulsion 40 | . 1 2 5 1 2 . . . 1 . 11 2 4 2 . 1 . 3 . 4 1 Treads 24 | . . 2 5 1 . . . . . . 9 2 2 2 . . . . . 1 . Leg 4 | . 1 . . . 2 . . . 1 . . . . . . . . . . . . Wheel 6 | . . . . . . . . . . . 2 . 2 . . . . . . 2 . Hover 2 | . . . . . . . . . . . . . . . . . . 1 . . 1 Flight 4 | . . . . . . . . . . . . . . . . 1 . 2 . 1 . Utility 61 | . 1 2 2 . . 1 4 12 . 5 10 6 9 2 3 2 . . 1 1 . Device 15 | . . 1 . . . . 2 7 . . . . 4 1 . . . . . . . Storage 3 | . 1 1 . . . . . 1 . . . . . . . . . . . . . Processor 11 | . . . 2 . . 1 . . . . 3 . 2 1 . . . . 1 1 . Hackware 22 | . . . . . . . 1 3 . 3 4 5 1 . 3 2 . . . . . Protection 10 | . . . . . . . 1 1 . 2 3 1 2 . . . . . . . . Artifact . | . . . . . . . . . . . . . . . . . . . . . . Weapon 84 | . 2 2 5 3 1 . 3 3 2 4 21 13 10 2 3 2 1 2 3 1 1 Energy Gun 2 | . 1 . . . 1 . . . . . . . . . . . . . . . . Energy Cannon 3 | . . . . . . . 1 . . . 1 . . 1 . . . . . . . Ballistic Gun 37 | . 1 1 4 1 . . . 1 1 2 10 7 5 . . . . . 2 1 1 Ballistic Cannon 1 | . . . . . . . 1 . . . . . . . . . . . . . . Launcher 14 | . . 1 . 2 . . 1 1 . . 1 2 . 1 2 . 1 1 1 . . Special Weapon 4 | . . . . . . . . . . . 1 . 2 . . . . 1 . . . Impact Weapon 8 | . . . 1 . . . . . 1 1 2 3 . . . . . . . . . Slashing Weapon 3 | . . . . . . . . . . . . . 1 . 1 1 . . . . . Piercing Weapon 1 | . . . . . . . . . . . . . . . . 1 . . . . . Special Melee Weapon 11 | . . . . . . . . 1 . 1 6 1 2 . . . . . . . . Unidentified Prototypes 6 | . . 1 1 . . . . . . . 1 . 1 . . 2 . . . . . Parts Lost 62 | . . 4 4 6 . . 1 7 5 . 13 4 3 . 2 . 2 6 2 2 1 Power 9 | . . 1 1 1 . . 1 1 1 . 2 . 1 . . . . . . . . Propulsion 19 | . . 1 2 2 . . . . . . 4 2 2 . . . . 3 1 1 1 Utility 20 | . . . . 1 . . . 5 2 . 5 2 . . 2 . 2 1 . . . Weapon 14 | . . 2 1 2 . . . 1 2 . 2 . . . . . . 2 1 1 . Highest Loss Streak 5 | . . 2 2 4 . . 1 2 3 . 5 2 1 . 1 . 1 4 2 2 1 To Critical Strikes 1 | . . . . . . . . . 1 . . . . . . . . . . . . Average Slot Usage (%) 81 | . 84 77 80 51 37 58 74 83 81 92 90 95 91 92 90 76 50 32 17 41 39 Engine 3 | . 14 13 8 3 . . . 1 . 6 5 . . . . 2 . . . . . Reactor 2 | . . . . . . . . . . . . 5 6 7 6 . . . . . . Treads 8 | . . 5 21 12 3 . . . . . 4 11 9 14 15 11 . . . 3 . Leg 7 | . 27 16 . . 15 22 18 18 18 18 7 . . . . . . . . . . Device 3 | . . . . . . . 15 11 . . . . 2 14 10 7 3 . . . . Storage 7 | . 14 14 11 4 . . . 3 9 9 7 7 7 7 7 5 . . . . . Processor 13 | . . . 17 21 11 20 18 13 9 9 12 12 18 23 13 7 7 6 7 19 20 Hackware 10 | . . . . . . . 2 6 18 16 24 31 16 . 12 18 16 9 6 6 6 Protection 4 | . . . . . . . 7 6 9 14 8 4 7 7 7 6 . . . . . Energy Gun 1 | . 13 3 . . 7 11 5 . . . . . . . . . . . . . . Energy Cannon 1 | . . . . . . . . 9 2 . 1 . . 6 7 1 . . . . . Ballistic Gun 7 | . 14 13 18 8 . . . 6 7 6 7 12 12 . . . . . 1 5 3 Launcher 2 | . . 8 2 . . . 3 . . . . . . 7 5 5 7 . . . . Impact Weapon 1 | . . . 1 . . . . . 5 7 3 2 . . . . . . . . . Naked Turns . | . . . . . . . . . . . . . . . . . . . . . . Heaviest Build 92 | 11 16 20 24 23 8 13 17 58 57 59 71 65 83 92 92 80 11 11 5 5 5 Greatest Support 60 | 20 20 40 40 40 60 60 60 60 60 60 60 48 48 56 56 56 15 15 6 10 6 Greatest Overweight (x) 8 | . 1 1 7 . . . . . . . 4 6 8 1 1 1 . 1 1 1 1 Average Overweight (x) . | . . . . . . . . . . . 1 2 5 1 1 . . . . . . Largest Inventory Capacity 20 | 8 10 10 10 10 5 5 5 20 20 20 20 20 20 20 20 20 5 5 5 5 5 Average Capacity 14 | 8 9 9 10 7 5 5 5 10 20 20 20 20 20 20 20 16 5 5 5 5 5 Most Carried 20 | 6 8 10 10 10 5 5 5 13 13 16 20 20 20 20 20 17 5 5 5 5 5 Average Carried 13 | 6 6 8 9 6 5 5 4 7 9 12 16 19 19 19 19 11 4 4 4 4 4 Final Capacity 20 | 8 10 10 10 5 5 5 5 20 20 20 20 20 20 20 20 5 5 5 5 5 5 Final Carried 20 | 6 8 7 10 5 5 5 5 13 8 15 17 20 20 20 17 5 5 5 4 5 5 Class Distribution -------------------- 35% | Mutant 27% | Bothacker-Mutant 20% | Scavenger-Mutant 7% | Hacker-Mutant 5% | Botlord-Mutant 3% | Bothacker-Skirmisher Dominant Class ---------------- Mutant | -10/Materials Mutant | -10/Mines Mutant | -9/Materials Mutant | -9/Mines Mutant | -9/Exiles Mutant | -8/Mines Mutant | -8/Materials Mutant | -8/Garrison Scavenger-Mutant | -8/Materials Bothacker-Mutant | -8/Garrison Bothacker-Mutant | -7/Factory Bothacker-Mutant | -7/Garrison Bothacker-Mutant | -7/Factory Scavenger-Mutant | -7/Lower Caves Mutant | -7/Lower Caves Hacker-Mutant | -7/Data Miner Hacker-Mutant | -6/Proximity Caves Hacker-Mutant | -6/Factory Hacker-Mutant | -6/Garrison Hacker-Mutant | -6/Factory Hacker-Mutant | -6/Garrison Resources | -11 -10 -10 -9 -9 -9 -8 -8 -8 -8 -8 -7 -7 -7 -7 -7 -7 -6 -6 -6 -6 -6 ----------- Run | Jun Mat Min Mat Min Exi Min Mat Gar Mat Gar Fac Gar Fac Low Low Dat Pro Fac Gar Fac Gar Matter Collected 3981 | 200 60 93 384 32 61 30 166 295 43 120 589 619 556 345 138 28 6 31 162 23 . Remotely . | . . . . . . . . . . . . . . . . . . . . . . Salvage Created 5092 | . 257 61 874 44 . 82 381 575 88 41 742 729 673 241 54 28 116 71 12 23 . Parts 307 | . 28 2 52 9 . 8 23 20 6 3 35 34 41 14 6 4 11 6 2 3 . Haulers Intercepted 6 | . 2 . 1 . . . 1 . 1 . . . 1 . . . . . . . . Recyclers Shooed 8 | . . 1 2 . . . . . . . 3 . 2 . . . . . . . . Parts Field Recycled . | . . . . . . . . . . . . . . . . . . . . . . Retrieved Matter . | . . . . . . . . . . . . . . . . . . . . . . Parts Self-Destructed 10 | . . . . . . . . . . . . . . 3 4 . 3 . . . . Prevented 3 | . . . . . . . . . . . . . . 3 . . . . . . . Kills | -11 -10 -10 -9 -9 -9 -8 -8 -8 -8 -8 -7 -7 -7 -7 -7 -7 -6 -6 -6 -6 -6 ------- Run | Jun Mat Min Mat Min Exi Min Mat Gar Mat Gar Fac Gar Fac Low Low Dat Pro Fac Gar Fac Gar Combat Hostiles Destroyed 126 | . 9 6 11 7 . 6 6 10 4 1 10 18 9 9 3 . 13 3 1 . . Melee 1 | . . . . . . . . . . . . . . . . . . 1 . . . Guns 71 | . 9 3 9 1 . 6 5 4 4 1 7 12 9 . . . . . 1 . . Cannons 9 | . . . . . . . . 6 . . 2 . . 1 . . . . . . . AOE 44 | . . 3 2 6 . . 1 . . . . 6 . 8 3 . 13 2 . . . Classes Destroyed 17 | . 2 1 7 . . . 1 3 . . 1 . . . 1 . 1 . . . . Worker 8 | . . . 2 . . . . . . . 3 . 2 . . . . . . 1 . Builder 5 | . . . 1 . . . 1 . . . 1 . 2 . . . . . . . . Tunneler 1 | . . . 1 . . . . . . . . . . . . . . . . . . Hauler 7 | . 2 . 1 . . . 1 . 1 . . . 2 . . . . . . . . Recycler 8 | . . . 3 . . . 1 . . . 2 . 2 . . . . . . . . Carrier 1 | . . . . . . . . 1 . . . . . . . . . . . . . Minesweeper 1 | . . . . . . . . . . . . . . . 1 . . . . . . Operator 4 | . . . 1 . . . 1 . . . 1 . . . . . . 1 . . . Drone 2 | . . . . . . . . . . . . . . . . . 2 . . . . Swarmer 57 | . 9 2 . 7 . 6 . . 4 . 3 4 3 4 1 . 11 3 . . . Grunt 31 | . . . 7 . . . 3 4 . . 2 8 3 3 1 . . . . . . Brawler 3 | . . . . . . . . 1 . . . 1 . 1 . . . . . . . Duelist 2 | . . . . . . . . 1 . . . 1 . . . . . . . . . Sentry 21 | . . . 7 . . . 2 4 . 1 3 2 1 . 1 . . . . . . Hunter 3 | . . . . . . . 1 . . . . 1 . 1 . . . . . . . Programmer 6 | . . . . . . . . . . . 2 1 2 . . . . . 1 . . Assembled 4 | . . 4 . . . . . . . . . . . . . . . . . . . Best Kill Streak 7 | . 6 3 5 4 . 3 5 5 5 1 7 4 6 4 4 1 7 2 1 1 . Combat Bots Only 7 | . 6 3 2 4 . 3 5 4 4 1 3 4 3 4 3 . 7 2 1 . . Max Kills in Single Turn 6 | . 1 1 6 4 . 1 2 1 1 1 1 3 2 4 2 1 3 2 1 1 . Gunslinging 1 | . . . . . . . . . . . . . 1 . . . . . . . . Exploded 4 | . . 1 1 4 . . 1 . . . . 3 . 4 2 . 3 2 . . . Melee 1 | . . . . . . . . . . . . . . . . . . 1 . . . Uniques/NPCs Destroyed 1 | . . . . . . . . . . . . . . . . 1 . . . . . Data Miner (-7/Data Miner) Combat | -11 -10 -10 -9 -9 -9 -8 -8 -8 -8 -8 -7 -7 -7 -7 -7 -7 -6 -6 -6 -6 -6 -------- Run | Jun Mat Min Mat Min Exi Min Mat Gar Mat Gar Fac Gar Fac Low Low Dat Pro Fac Gar Fac Gar Damage Taken 9928 | . 183 297 946 479 . 127 342 1071 622 214 1778 714 792 196 111 50 261 634 348 510 253 Core 2181 | . 21 55 203 137 . 32 54 122 130 49 240 70 91 16 13 . 89 327 200 219 113 Absorbed by Shields 61 | . . . . . . . . . . . . 46 . . . . . . . 15 . Redirected to Shielding 34 | . . . . . . . . 2 26 6 . . . . . . . . . . . Regen/Repaired (Parts) 8 | . . . . . . . . . . . 8 . . . . . . . . . . Core Remaining (%) 47 | 100 . 69 . . . 7 . . . 35 . . . . . . 25 . . . . Volleys Fired 343 | . 20 21 37 6 . . 13 44 7 5 52 43 56 7 4 . 9 3 11 2 3 Largest 2 | . 2 2 2 2 . . 1 2 2 2 2 2 2 2 1 . 1 1 1 1 1 Hottest 90 | . 60 60 46 56 . . 36 90 90 46 88 50 50 70 45 . 45 45 45 30 30 Shots Fired 609 | . 40 28 65 9 . 17 47 78 12 10 76 81 108 8 3 . 8 3 11 2 3 Gun 493 | . 40 23 61 7 . 17 34 35 7 10 64 77 103 . . . . . 10 2 3 Cannon 71 | . . . . . . . 7 43 5 . 12 . . 4 . . . . . . . Launcher 40 | . . 5 4 2 . . 6 . . . . 4 . 4 3 . 8 3 1 . . Special 5 | . . . . . . . . . . . . . 5 . . . . . . . . Kinetic 420 | . 20 14 61 7 . . 7 35 7 10 64 77 103 . . . . . 10 2 3 Thermal 111 | . . . . . . 17 34 43 5 . 12 . . . . . . . . . . Explosive 40 | . . 5 4 2 . . 6 . . . . 4 . 4 3 . 8 3 1 . . Electromagnetic 33 | . 20 9 . . . . . . . . . . . 4 . . . . . . . Robot Hit Streak 22 | . 8 6 18 20 . 16 22 14 3 4 13 12 10 14 . . 6 1 3 5 . Robot Miss Streak 5 | . 3 3 4 3 . 1 4 3 1 1 2 3 5 2 . . 2 2 1 . . Penetration Max 1 | . . . . . . . . 1 . . . . . . . . . . . 1 . Secondary Targets 9 | . 4 . 1 . . . . . . . . 3 1 . . . . . . . . Max Gunslinging Chain 1 | . 1 . 1 . . . . . . . . 1 1 . . . . . . . . Autonomous 52 | . . . . . . 17 35 . . . . . . . . . . . . . . Shots Hit Robots 407 | . 19 16 47 3 . 16 35 42 11 7 69 53 70 5 . 1 3 4 4 2 . Core Hits 271 | . 14 9 38 8 . 6 15 16 5 1 23 36 26 19 16 1 24 10 3 1 . Critical Kills 4 | . . . . . . . . 1 . . 1 1 1 . . . . . . . . Critical Parts Destroyed 3 | . . . . . . . . . . . 2 . . . . . . . 1 . . Critical Strikes 10 | . 1 . . . . . . 1 1 . 3 1 1 . . . . 1 1 . . Meltdown 1 | . . . . . . . . 1 . . . . . . . . . . . . . Destroy 4 | . . . . . . . . . . . 1 1 1 . . . . . 1 . . Corrupt 1 | . 1 . . . . . . . . . . . . . . . . . . . . Smash 3 | . . . . . . . . . 1 . 2 . . . . . . . . . . Sever 1 | . . . . . . . . . . . . . . . . . . 1 . . . Melee Attacks 148 | . . . 3 . . . . . 5 14 50 31 13 . 1 24 . 7 . . . Impact 84 | . . . 3 . . . . . 5 7 37 29 3 . . . . . . . . Slashing 27 | . . . . . . . . . . . . . 8 . 1 11 . 7 . . . Piercing 13 | . . . . . . . . . . . . . . . . 13 . . . . . Sneak Attacks 10 | . . . . . . . . . . . 7 . 2 . . 1 . . . . . Combat Hostiles . | . . . . . . . . . . . . . . . . . . . . . . Follow-up Attacks . | . . . . . . . . . . . . . . . . . . . . . . Damage Inflicted 11970 | . 187 302 1813 405 . 488 1120 989 220 31 1196 1301 1219 731 312 58 893 416 213 76 . Guns 5642 | . 187 120 635 35 . 488 710 399 126 31 725 887 1135 . . . . . 88 76 . Cannons 999 | . . . . . . . 86 590 24 . 236 . . 63 . . . . . . . Explosions 4680 | . . 181 1142 370 . . 277 . . . . 414 . 668 312 . 893 298 125 . . Melee 591 | . . . 31 . . . . . 70 . 230 . 84 . . 58 . 118 . . . Ramming 58 | . . 1 5 . . . 47 . . . 5 . . . . . . . . . . Kinetic 4377 | . 78 76 635 35 . . 86 399 126 31 725 887 1135 . . . . . 88 76 . Thermal 2128 | . . . . . . 488 710 590 24 . 236 . . . . . . 80 . . . Explosive 4600 | . . 181 1142 370 . . 277 . . . . 414 . 668 312 . 893 218 125 . . Electromagnetic 216 | . 109 44 . . . . . . . . . . . 63 . . . . . . . Impact 331 | . . . 31 . . . . . 70 . 230 . . . . . . . . . . Slashing 202 | . . . . . . . . . . . . . 84 . . . . 118 . . . Piercing 58 | . . . . . . . . . . . . . . . . 58 . . . . . Highest Corruption 7 | . . 7 3 3 3 3 . 1 1 1 2 2 4 4 4 4 4 . . 1 1 Average Corruption 3 | . . 6 2 3 3 3 . 1 1 1 1 2 2 4 4 4 4 . . 1 1 Corruption Purged . | . . . . . . . . . . . . . . . . . . . . . . Corruption Blocked 3 | . . . . . . . . . . . 3 . . . . . . . . . . Effects 161 | . . 21 14 3 2 7 . . 1 5 9 14 24 28 20 8 2 . . 2 1 Message Errors 38 | . . 5 2 2 1 2 . . . 3 2 3 3 8 4 2 . . . . 1 Matter Fused 37 | . . 3 4 1 . 1 . . . . 4 2 6 5 7 1 1 . . 2 . Heat Flow Errors 15 | . . 1 1 . . . . . . 1 1 1 4 4 2 . . . . . . Energy Discharges 21 | . . 4 3 . . 2 . . . . 1 3 3 1 2 2 . . . . . Parts Rejected 3 | . . . 1 . . . . . 1 . 1 . . . . . . . . . . Parts Fused 1 | . . . . . . . . . . . . . . . . 1 . . . . . Data Loss (minor) 25 | . . 6 . . 1 1 . . . 1 . 3 4 7 2 . . . . . . Data Loss (major) 10 | . . 1 1 . . 1 . . . . . 2 1 1 1 2 . . . . . Misfires 4 | . . . 1 . . . . . . . . . 2 1 . . . . . . . Alerts 4 | . . 1 1 . . . . . . . . . 1 . 1 . . . . . . Weapon Failures 3 | . . . . . . . . . . . . . . 1 1 . 1 . . . . Overload Shots . | . . . . . . . . . . . . . . . . . . . . . . Overflow Damage 318 | . . . 44 18 . . . 23 . . 106 . 54 . . . 9 64 . . . Projectiles 34 | . . . . . . . . 23 . . 11 . . . . . . . . . . Explosions 135 | . . . 44 18 . . . . . . . . . . . . 9 64 . . . Melee 149 | . . . . . . . . . . . 95 . 54 . . . . . . . . Knockbacks 3 | . . . . . . . 2 . . . 1 . . . . . . . . . . Impact 1 | . . . . . . . . . . . 1 . . . . . . . . . . Kinetic 2 | . . . . . . . 2 . . . . . . . . . . . . . . Secondary . | . . . . . . . . . . . . . . . . . . . . . . Self-Inflicted Damage 804 | . . 49 269 46 . . 46 . . . . . . 26 40 . 178 123 27 . . Shots 23 | . . 1 4 2 . . 1 . . . . . . 1 2 . 8 3 1 . . Rammed 8 | . . . 5 . . . . . . . 3 . . . . . . . . . . Targets Rammed 15 | . . 2 5 . . . 5 . . . 3 . . . . . . . . . . Kicked 7 | . . 2 . . . . 5 . . . . . . . . . . . . . . Crushed . | . . . . . . . . . . . . . . . . . . . . . . Highest Temperature 267 | . 60 253 165 . . . . 40 54 267 155 207 223 191 230 . . . . . . Average Temperature 57 | . 30 57 31 . . . . 7 28 132 27 44 80 65 119 . . . . . . Received Heat Transfer 2113 | . . 40 300 18 . . 81 294 252 99 420 243 156 36 9 . . 54 9 54 48 Effects 4 | . . . . . . . . . . 1 . . 3 . . . . . . . . Interference 4 | . . . . . . . . . . 1 . . 3 . . . . . . . . Siege Activations . | . . . . . . . . . . . . . . . . . . . . . . Robots Corrupted . | . . . . . . . . . . . . . . . . . . . . . . Combat Hostiles . | . . . . . . . . . . . . . . . . . . . . . . Parts Fried 8 | . . . . . . . . . . . 8 . . . . . . . . . . Impact Corruptions 5 | . . . . . . . . . . . 5 . . . . . . . . . . Robots Melted 1 | . . . . . . . . 1 . . . . . . . . . . . . . Combat Hostiles . | . . . . . . . . . . . . . . . . . . . . . . Parts Melted 6 | . . . . . . 1 . 4 . . 1 . . . . . . . . . . Heat Transferred 2825 | . . . . . . 592 925 925 37 . 296 . . . . . . 50 . . . Parts Sabotaged . | . . . . . . . . . . . . . . . . . . . . . . Parts Stolen 5 | . . . . . . . . . . . . . . . 5 . . . . . . Parts Stripped . | . . . . . . . . . . . . . . . . . . . . . . Power Chain Reactions . | . . . . . . . . . . . . . . . . . . . . . . Missiles Intercepted . | . . . . . . . . . . . . . . . . . . . . . . Alert | -11 -10 -10 -9 -9 -9 -8 -8 -8 -8 -8 -7 -7 -7 -7 -7 -7 -6 -6 -6 -6 -6 ------- Run | Jun Mat Min Mat Min Exi Min Mat Gar Mat Gar Fac Gar Fac Low Low Dat Pro Fac Gar Fac Gar Peak Influence 797 | . 254 106 332 237 . 141 314 368 359 515 338 664 463 . . . . 797 661 415 293 Initial 557 | . . 26 . 94 . . . 74 179 233 270 39 348 . . . . 454 557 346 283 Average 218 | . 103 28 181 162 . 70 190 181 292 386 124 446 245 . . . . 682 603 387 285 Maximum Alert Level 3 | . 1 . 1 1 . . 1 1 1 2 1 2 2 . . . . 3 2 2 1 Low Security (%) 53 | 100 77 100 47 94 . 100 67 62 18 . 73 20 38 . . . . . . . . Level 1 32 | . 22 . 52 5 . . 32 37 81 54 26 14 57 . . . . . . 44 100 Level 2 13 | . . . . . . . . . . 45 . 64 3 . . . . 65 100 55 . Level 3 . | . . . . . . . . . . . . . . . . . . 34 . . . Level 4 . | . . . . . . . . . . . . . . . . . . . . . . Level 5 . | . . . . . . . . . . . . . . . . . . . . . . High Security . | . . . . . . . . . . . . . . . . . . . . . . Max Security . | . . . . . . . . . . . . . . . . . . . . . . Squads Dispatched 17 | . . . 1 . . . 2 . 1 . 5 . 5 . . . . . . 3 . Investigation 5 | . . . . . . . . . 1 . 1 . 1 . . . . . . 2 . Extermination 3 | . . . . . . . . . . . 1 . 2 . . . . . . . . Reinforcement 4 | . . . 1 . . . 2 . . . . . 1 . . . . . . . . Assault 1 | . . . . . . . . . . . . . . . . . . . . 1 . Garrison 4 | . . . . . . . . . . . 3 . 1 . . . . . . . . Intercept . | . . . . . . . . . . . . . . . . . . . . . . Searches Triggered . | . . . . . . . . . . . . . . . . . . . . . . Construction Impeded 1 | . . . . . . . 1 . . . . . . . . . . . . . . Haulers Reinforced . | . . . . . . . . . . . . . . . . . . . . . . Active Scanning Responses . | . . . . . . . . . . . . . . . . . . . . . . Cargo Convoy Interrupts 1 | . . . . . . . . . . . 1 . . . . . . . . . . Stealth | -11 -10 -10 -9 -9 -9 -8 -8 -8 -8 -8 -7 -7 -7 -7 -7 -7 -6 -6 -6 -6 -6 --------- Run | Jun Mat Min Mat Min Exi Min Mat Gar Mat Gar Fac Gar Fac Low Low Dat Pro Fac Gar Fac Gar Distress Signals 3 | . . . 1 . . . . . 2 . . . . . . . . . . . . Communications Jammed 2 | . . . . . . . . . . . . . 2 . . . . . . . . Distress Signals 2 | . . . . . . . . . . . . . 2 . . . . . . . . Times Spotted 246 | . 15 8 17 10 . 7 17 26 18 17 21 21 13 9 7 3 11 6 5 7 8 Peak Tracking Total 10 | . 6 2 3 4 . 4 5 8 6 6 5 4 3 4 4 3 5 4 7 5 10 Tactical Retreats 17 | . 1 2 . 3 . . 1 3 2 2 1 1 . . . . . . 1 . . Traps | -11 -10 -10 -9 -9 -9 -8 -8 -8 -8 -8 -7 -7 -7 -7 -7 -7 -6 -6 -6 -6 -6 ------- Run | Jun Mat Min Mat Min Exi Min Mat Gar Mat Gar Fac Gar Fac Low Low Dat Pro Fac Gar Fac Gar Traps Triggered 21 | . 1 . 4 . . . 1 5 1 5 . 1 2 . . . . . . 1 . Indirectly . | . . . . . . . . . . . . . . . . . . . . . . Trap Hack Attempts 36 | . . . . . . . . 36 . . . . . . . . . . . . . Triggered . | . . . . . . . . . . . . . . . . . . . . . . Disarmed 13 | . . . . . . . . 1 . . 12 . . . . . . . . . . Reprogrammed 1 | . . . . . . . . . . . . . . . . . . . . 1 . Reused 11 | . . . . . . . . 1 4 2 . . . . . 3 . . . 1 . Traps Extracted . | . . . . . . . . . . . . . . . . . . . . . . Installed 11 | . . . . . . . . 1 5 2 . . . . . 3 . . . . . Triggered 11 | . . . . . . . . 1 4 2 1 . . . . . 2 . . 1 . Most Traps Carried 8 | . . . . . . . . 8 7 2 . . . . 6 3 . . . . . Machines | -11 -10 -10 -9 -9 -9 -8 -8 -8 -8 -8 -7 -7 -7 -7 -7 -7 -6 -6 -6 -6 -6 ---------- Run | Jun Mat Min Mat Min Exi Min Mat Gar Mat Gar Fac Gar Fac Low Low Dat Pro Fac Gar Fac Gar Machines Disabled 23 | . . . 3 1 . . . 4 . 2 1 3 . . . . . 9 . . . Max in Single Turn 4 | . . . 2 1 . . . 1 . 1 1 1 . . . . . 4 . . . Garrison Access 3 | . . . . . . . . . . . . . 2 . . . . . . 1 . Garrison Relay 5 | . . . . . . . . 1 . 2 . 2 . . . . . . . . . Machines Repaired . | . . . . . . . . . . . . . . . . . . . . . . Machines Sabotaged . | . . . . . . . . . . . . . . . . . . . . . . Overloaded Fab Kills . | . . . . . . . . . . . . . . . . . . . . . . Hacking | -11 -10 -10 -9 -9 -9 -8 -8 -8 -8 -8 -7 -7 -7 -7 -7 -7 -6 -6 -6 -6 -6 --------- Run | Jun Mat Min Mat Min Exi Min Mat Gar Mat Gar Fac Gar Fac Low Low Dat Pro Fac Gar Fac Gar Machines Accessed 38 | . . 1 1 . 2 . 2 3 2 . 9 . 5 . 1 4 . 3 . 5 . Terminals 20 | . . . 1 . . . 1 3 1 . 7 . 2 . . . . 2 . 3 . Fabricators 1 | . . . . . . . . . . . . . 1 . . . . . . . . Repair Stations . | . . . . . . . . . . . . . . . . . . . . . . Recycling Units . | . . . . . . . . . . . . . . . . . . . . . . Scanalyzers 1 | . . . . . . . . . . . 1 . . . . . . . . . . Garrison Access 8 | . . . . . . . 1 . 1 . 1 . 2 . . . . 1 . 2 . Total Hacks 103 | . . 1 1 . 2 . 4 5 2 . 29 . 9 . 1 31 . 6 . 12 . Successful 67 | . . 1 . . 2 . 2 1 1 . 14 . 4 . 1 31 . 3 . 7 . Failed 36 | . . . 1 . . . 2 4 1 . 15 . 5 . . . . 3 . 5 . Catastrophic 8 | . . . . . . . 2 . . . 3 . 2 . . . . . . 1 . Database Lockouts . | . . . . . . . . . . . . . . . . . . . . . . Manual 46 | . . . 1 . 1 . 3 2 1 . 18 . 7 . . . . 5 . 8 . Terminals 50 | . . . 1 . . . 2 5 1 . 26 . 5 . . . . 3 . 7 . Fabricators 2 | . . . . . . . . . . . . . 2 . . . . . . . . Repair Stations . | . . . . . . . . . . . . . . . . . . . . . . Recycling Units . | . . . . . . . . . . . . . . . . . . . . . . Scanalyzers 1 | . . . . . . . . . . . 1 . . . . . . . . . . Garrison Access 15 | . . . . . . . 2 . 1 . 2 . 2 . . . . 3 . 5 . Terminal Hacks 46 | . . 1 . . 2 . . 1 . . 7 . 1 . 1 31 . . . 2 . Record 12 | . . . . . 1 . . . . . . . . . . 11 . . . . . Part Schematic 11 | . . . . . . . . . . . . . . . . 11 . . . . . Robot Schematic 6 | . . . . . . . . . . . . . . . . 6 . . . . . Prototype ID Bank 3 | . . . . . . . . . . . . . . . . 3 . . . . . Open Door 2 | . . 1 . . . . . . . . . . . . 1 . . . . . . Branch Access Points 2 | . . . . . . . . . . . 1 . 1 . . . . . . . . Emergency Access Points 1 | . . . . . . . . 1 . . . . . . . . . . . . . Terminal Index 1 | . . . . . . . . . . . 1 . . . . . . . . . . Unreport Threat 1 | . . . . . . . . . . . 1 . . . . . . . . . . Disarm Traps 2 | . . . . . . . . . . . 2 . . . . . . . . . . Reprogram Traps 2 | . . . . . . . . . . . . . . . . . . . . 2 . Hauler Manifests 1 | . . . . . . . . . . . 1 . . . . . . . . . . Registered Components 1 | . . . . . . . . . . . 1 . . . . . . . . . . EX-Prototype ID Bank 1 | . . . . . 1 . . . . . . . . . . . . . . . . Fabricator Hacks . | . . . . . . . . . . . . . . . . . . . . . . Repair Station Hacks . | . . . . . . . . . . . . . . . . . . . . . . Recycling Unit Hacks . | . . . . . . . . . . . . . . . . . . . . . . Scanalyzer . | . . . . . . . . . . . . . . . . . . . . . . Garrison Access Hacks 8 | . . . . . . . 1 . 1 . 1 . 2 . . . . 1 . 2 . Unlock Access 6 | . . . . . . . 1 . 1 . 1 . . . . . . 1 . 2 . Seal Access 2 | . . . . . . . . . . . . . 2 . . . . . . . . Unauthorized Hacks 13 | . . . . . . . 1 . . . 6 . 1 . . . . 2 . 3 . Terminals 12 | . . . . . . . 1 . . . 6 . 1 . . . . 2 . 2 . Track 1 | . . . . . . . . . . . 1 . . . . . . . . . . Assimilate 2 | . . . . . . . . . . . 1 . 1 . . . . . . . . Botnet 8 | . . . . . . . 1 . . . 3 . . . . . . 2 . 2 . Operators 1 | . . . . . . . . . . . 1 . . . . . . . . . . Fabricators . | . . . . . . . . . . . . . . . . . . . . . . Repair Stations . | . . . . . . . . . . . . . . . . . . . . . . Recycling Units . | . . . . . . . . . . . . . . . . . . . . . . Scanalyzers . | . . . . . . . . . . . . . . . . . . . . . . Garrison Access 1 | . . . . . . . . . . . . . . . . . . . . 1 . Reprogram 1 | . . . . . . . . . . . . . . . . . . . . 1 . Data Cores Recovered 1 | . . . . . . . . . . . 1 . . . . . . . . . . Used 1 | . . . . . . . . . . . 1 . . . . . . . . . . Hacking Detections 26 | . . . 1 . . . 2 3 1 . 9 . 3 . . . . 2 . 5 . Full Trace Events 3 | . . . . . . . . . . . 1 . 1 . . . . . . 1 . Feedback Events 1 | . . . . . . . . . . . . . . . . . . . . 1 . Corruption 1 | . . . . . . . . . . . . . . . . . . . . 1 . Feedback Blocked . | . . . . . . . . . . . . . . . . . . . . . . Robot Schematics Acquired 6 | . . . . . . . . . . . . . . . . 6 . . . . . Robots Built . | . . . . . . . . . . . . . . . . . . . . . . Authchips . | . . . . . . . . . . . . . . . . . . . . . . Time . | . . . . . . . . . . . . . . . . . . . . . . Total Robot Build Rating . | . . . . . . . . . . . . . . . . . . . . . . Part Schematics Acquired 11 | . . . . . . . . . . . . . . . . 11 . . . . . Parts Built . | . . . . . . . . . . . . . . . . . . . . . . Authchips . | . . . . . . . . . . . . . . . . . . . . . . Time . | . . . . . . . . . . . . . . . . . . . . . . Total Part Build Rating . | . . . . . . . . . . . . . . . . . . . . . . Parts Repaired . | . . . . . . . . . . . . . . . . . . . . . . Time . | . . . . . . . . . . . . . . . . . . . . . . Parts Recycled . | . . . . . . . . . . . . . . . . . . . . . . Recycled Matter . | . . . . . . . . . . . . . . . . . . . . . . Retrieved Matter . | . . . . . . . . . . . . . . . . . . . . . . Retrieved Components . | . . . . . . . . . . . . . . . . . . . . . . Parts Scanalyzed . | . . . . . . . . . . . . . . . . . . . . . . Part Schematics Acquired . | . . . . . . . . . . . . . . . . . . . . . . Parts Damaged . | . . . . . . . . . . . . . . . . . . . . . . Bothacking | -11 -10 -10 -9 -9 -9 -8 -8 -8 -8 -8 -7 -7 -7 -7 -7 -7 -6 -6 -6 -6 -6 ------------ Run | Jun Mat Min Mat Min Exi Min Mat Gar Mat Gar Fac Gar Fac Low Low Dat Pro Fac Gar Fac Gar Used RIF Installer 7 | . . . . . . . . 2 . 1 . 2 . . . . . . 1 . 1 Coupler Efficiency 1 | . . . . . . . . . . . . . . . . . . . 1 . . Signal Jammer 1 | . . . . . . . . . . . . 1 . . . . . . . . . Zone Cloak 1 | . . . . . . . . . . . . . . . . . . . . . 1 Watcher Feeds 1 | . . . . . . . . . . 1 . . . . . . . . . . . Program Shield 1 | . . . . . . . . 1 . . . . . . . . . . . . . Autooverride 1 | . . . . . . . . . . . . 1 . . . . . . . . . Robots Hacked 20 | . . . . . . . . . . 5 10 2 3 . . . . . . . . Non-combat 6 | . . . . . . . . . . . 4 . 2 . . . . . . . . Combat 14 | . . . . . . . . . . 5 6 2 1 . . . . . . . . Autooverrided 2 | . . . . . . . . . . . . 2 . . . . . . . . . Robot Hacks Applied 20 | . . . . . . . . . . 5 10 1 4 . . . . . . . . start_evac 1 | . . . . . . . . . . . 1 . . . . . . . . . . drop_inventory 3 | . . . . . . . . . . . 1 . 2 . . . . . . . . ignore_parts 1 | . . . . . . . . . . . 1 . . . . . . . . . . find_garrison 1 | . . . . . . . . . . . 1 . . . . . . . . . . scatter_targeting 1 | . . . . . . . . . . . 1 . . . . . . . . . . reboot_system 1 | . . . . . . . . . . . . 1 . . . . . . . . . overwrite_iff 1 | . . . . . . . . . . . 1 . . . . . . . . . . formatsys_low 2 | . . . . . . . . . . . 1 . 1 . . . . . . . . formatsys_high 9 | . . . . . . . . . . 5 3 . 1 . . . . . . . . Relay Couplers Released 21 | . . . . . . . . 5 . 7 . 7 . . . . . . . 2 . Machine Destruction 21 | . . . . . . . . 5 . 7 . 7 . . . . . . . 2 . Attached 17 | . . . . . . . . 3 . 3 3 5 . . 3 . . . . . . Fabnet Peak Effective % . | . . . . . . . . . . . . . . . . . . . . . . Robots Rewired . | . . . . . . . . . . . . . . . . . . . . . . Allies Hacked . | . . . . . . . . . . . . . . . . . . . . . . Hacks Repelled . | . . . . . . . . . . . . . . . . . . . . . . Allies | -11 -10 -10 -9 -9 -9 -8 -8 -8 -8 -8 -7 -7 -7 -7 -7 -7 -6 -6 -6 -6 -6 -------- Run | Jun Mat Min Mat Min Exi Min Mat Gar Mat Gar Fac Gar Fac Low Low Dat Pro Fac Gar Fac Gar Total Allies 21 | . . 3 . 1 . . . . . 5 5 2 3 . 2 . . . . . . Largest Group 4 | . . 3 3 1 . . . . . 4 3 2 1 . 2 . . . . . . Highest-Rated Group 62 | . . 40 40 31 . . . . . 62 62 56 32 . 62 . . . . . . Highest-Rated Ally 32 | . . 16 16 31 . . . . . 16 30 32 32 . 31 . . . . . . Total Orders 4 | . . . . . . . . 2 . . 1 1 . . . . . . . . . STAY 1 | . . . . . . . . . . . . 1 . . . . . . . . . AID 1 | . . . . . . . . . . . 1 . . . . . . . . . . RETURN 2 | . . . . . . . . 2 . . . . . . . . . . . . . Ally Attacks 75 | . . . 3 2 . . . 16 . 26 11 9 3 . 5 . . . . . . Total Damage 1091 | . . . 45 21 . . . . . 318 239 289 117 . 62 . . . . . . Kills 10 | . . . 1 . . . . . . 5 . 3 1 . . . . . . . . Allies Corrupted . | . . . . . . . . . . . . . . . . . . . . . . Allies Melted . | . . . . . . . . . . . . . . . . . . . . . . Intel | -11 -10 -10 -9 -9 -9 -8 -8 -8 -8 -8 -7 -7 -7 -7 -7 -7 -6 -6 -6 -6 -6 ------- Run | Jun Mat Min Mat Min Exi Min Mat Gar Mat Gar Fac Gar Fac Low Low Dat Pro Fac Gar Fac Gar Robot Analysis Total 131 | . . . . . . . . . . . . . . . . 131 . . . . . Derelict Logs Recovered 7 | . . 2 . . . . . . . . . . . 2 2 . 1 . . . . Drone Launches 18 | . . . . . . . . 18 . . . . . . . . . . . . . Drone Recoveries 2 | . . . . . . . . 2 . . . . . . . . . . . . . Exploration | -11 -10 -10 -9 -9 -9 -8 -8 -8 -8 -8 -7 -7 -7 -7 -7 -7 -6 -6 -6 -6 -6 ------------- Run | Jun Mat Min Mat Min Exi Min Mat Gar Mat Gar Fac Gar Fac Low Low Dat Pro Fac Gar Fac Gar Turns Passed 12944 | 2 501 1161 1059 249 215 419 430 854 250 479 1374 1134 1579 1147 962 312 190 147 102 295 83 Spaces Moved 8539 | 2 362 710 568 340 286 428 397 679 249 459 731 427 577 466 375 117 402 197 151 468 148 Core 588 | . . . 1 288 118 . . . . . . . . . . . . 12 98 55 16 Treads 2214 | . . 146 567 52 . . . . . . 67 248 210 466 375 83 . . . . . Legs 3775 | 2 362 564 . . 168 428 397 679 249 459 467 . . . . . . . . . . Wheels 744 | . . . . . . . . . . . 197 179 367 . . . . . . 1 . Hover 63 | . . . . . . . . . . . . . . . . . . 63 . . . Flight 1155 | . . . . . . . . . . . . . . . . 34 402 122 53 412 132 Fastest Speed 34 | 120 120 120 160 50 50 90 90 90 45 60 90 140 200 240 240 40 40 34 40 40 40 Average Speed 127 | 120 120 153 160 66 73 90 90 90 69 85 135 206 226 240 240 187 40 46 48 55 41 Slowest Speed 480 | 120 190 190 400 160 90 90 90 90 90 90 240 320 480 240 240 240 40 100 100 100 100 Overloaded Moves 175 | . . . . . . . . . 113 62 . . . . . . . . . . . Propulsion Burnouts . | . . . . . . . . . . . . . . . . . . . . . . Robots Hopped 4 | . . . . . . . . . . . . . . . . . . . . 3 1 Cave-ins Triggered . | . . . . . . . . . . . . . . . . . . . . . . Exploration Rate (%) 48 | 2 91 83 60 71 70 77 23 80 30 42 22 50 26 68 56 80 66 7 30 9 32 Regions Visited 21 Branch Regions 8 Pre-discovered Areas 29 | . . . . . 1 . . . . . . . . . 1 26 1 . . . . Known Exits Taken 8 | . . . . . . 1 1 . 1 . 1 . 1 1 . . . 1 . 1 . Unknown Exits Taken 9 | 1 1 1 1 1 1 . . . . . . . . . 1 1 1 . . . . Scrap Searched 11 | . . 2 . 2 . 1 . . . . . . . . 6 . . . . . . Spaces Dug 110 | . . . 2 10 . . 14 . . . 15 1 8 28 1 . 27 . 4 . . Terrain Destroyed 817 | . . 58 95 20 . 1 56 3 2 . 17 51 8 90 38 . 214 129 35 . . Melee 27 | . . . 2 . . . . . . . 15 1 8 . 1 . . . . . . Projectile 21 | . . . . . . 1 8 3 2 . 2 . . . . . . . 5 . . AOE 769 | . . 58 93 20 . . 48 . . . . 50 . 90 37 . 214 129 30 . . Terrain Rammed . | . . . . . . . . . . . . . . . . . . . . . . Walls Destroyed . | . . . . . . . . . . . . . . . . . . . . . . Machines Disabled . | . . . . . . . . . . . . . . . . . . . . . . Actions | -11 -10 -10 -9 -9 -9 -8 -8 -8 -8 -8 -7 -7 -7 -7 -7 -7 -6 -6 -6 -6 -6 --------- Run | Jun Mat Min Mat Min Exi Min Mat Gar Mat Gar Fac Gar Fac Low Low Dat Pro Fac Gar Fac Gar Total 9904 | 1 389 758 642 351 289 462 453 841 307 518 971 574 771 485 431 186 412 234 167 496 166 Wait 383 | . 1 8 7 . . 31 29 38 29 . 65 31 65 . 26 19 . 18 . 5 11 Move 8509 | 1 361 709 567 339 285 427 396 677 249 457 730 426 576 465 374 116 401 196 150 461 146 Hop 4 | . . . . . . . . . . . . . . . . . . . . 3 1 Pick Up 96 | . 2 7 4 . . 1 1 13 3 11 12 10 15 3 9 . 1 1 . 2 1 Fast Attach 85 | . 4 2 8 1 3 2 6 11 1 4 14 7 7 . 3 2 . 3 1 5 1 Attach 50 | . . 5 . 1 . . 1 4 2 2 11 4 6 3 1 2 1 2 3 1 1 Detach 14 | . . . 1 1 . . . 1 . . 3 . 1 . . 2 . 2 2 . 1 Swap 62 | . . . 5 2 . . . 2 . 4 18 12 11 3 2 2 . 1 . . . Drop 106 | . 1 4 5 1 1 1 2 7 6 3 10 10 20 4 11 16 . 1 . 2 1 Fire 343 | . 20 21 37 6 . . 13 44 7 5 52 43 56 7 4 . 9 3 11 2 3 Melee 148 | . . . 3 . . . . . 5 14 50 31 13 . 1 24 . 7 . . . Ram . | . . . . . . . . . . . . . . . . . . . . . . Kick 7 | . . 2 . . . . 5 . . . . . . . . . . . . . . Crush 8 | . . . 5 . . . . . . . 3 . . . . . . . . . . Escape Stasis 37 | . . . . . . . . 7 . 15 . . . . . . . . . 15 . Rewire 5 | . . . . . . . . . . 1 3 . 1 . . . . . . . . Trap 47 | . . . . . . . . 37 5 2 . . . . . 3 . . . . . Miscellaneous . | . . . . . . . . . . . . . . . . . . . . . . Route ------- -11/Junkyard -10/Materials (discovered 4 exits: *Mat x3 / *Min) -10/Mines -9/Materials (discovered 3 exits: *Mat x2 / [*Min]) -9/Mines (discovered 2 exits: *Mat / *Exi) -9/Exiles -8/Mines -8/Materials -8/Garrison (discovered 3 exits: *Mat x3) -8/Materials -8/Garrison -7/Factory (discovered 5 exits: Sto x2 / Low x2 / Gar) -7/Garrison -7/Factory (discovered 4 exits: *Sto x2 / *Low x2) -7/Lower Caves -7/Lower Caves -7/Data Miner -6/Proximity Caves -6/Factory -6/Garrison -6/Factory -6/Garrison History --------- Turn | Location | Event 1 | -11/Junkyard | Discovered new exit (range 1) 3 | -11/Junkyard | Entered Materials 125 | -10/Materials | Discovered new exit (range 16) 241 | -10/Materials | Discovered new exit (range 8) 300 | -10/Materials | Build established: Mutant 446 | -10/Materials | Discovered new exit (range 11) 492 | -10/Materials | Discovered new exit (range 11) 504 | -10/Materials | Entered Mines 507 | -10/Mines | Found the Drone Emporium 512 | -10/Mines | Found Prototype Device 512 | -10/Mines | Identified Bomb Drone Bay 535 | -10/Mines | Met a Derelict bent on vengeance 561 | -10/Mines | Received a Rocket Launcher from a helpful Derelict 645 | -10/Mines | Assembled infested the area 1017 | -10/Mines | Found a damaged Exp. Sensor Array with a note attached 1021 | -10/Mines | Found Prototype Device 1352 | -10/Mines | Learned 4 Materials zone layouts 1569 | -10/Mines | Learned Materials garrison access intel 1617 | -10/Mines | Discovered new exit (range 5) 1645 | -10/Mines | Assisted by bots powering up and referring to "LRC-V3" 1665 | -10/Mines | Entered Materials 1665 | -9/Materials | Accompanied by 3 allies 1665 | -9/Materials | Evolved 2 slots: Utility x2 1666 | -9/Materials | Identified exit to Materials 2511 | -9/Materials | Discovered exit to Materials (range 7) 2674 | -9/Materials | Core integrity fell below 50% 2712 | -9/Materials | Discovered new exit (range 8) 2724 | -9/Materials | Entered Mines 2775 | -9/Mines | Discovered exit to Materials (range 11) 2828 | -9/Mines | Core integrity fell below 20% 2845 | -9/Mines | Received a Mining Laser from a helpful Derelict 2858 | -9/Mines | Lost 4 parts (1p1n2w) 2971 | -9/Mines | Deemed a non-threat by the Exiles lab entrance 2971 | -9/Mines | Discovered new exit (range 5) 2973 | -9/Mines | Entered Exiles 2986 | -9/Exiles | Met 8R-AWN 2994 | -9/Exiles | Met EX-HEX 3008 | -9/Exiles | Met EX-BIN 3014 | -9/Exiles | Aligned with FarCom system 3015 | -9/Exiles | Given EX-Vault access code 3028 | -9/Exiles | Opened EX-Vault 3033 | -9/Exiles | Found Potential Leg 3035 | -9/Exiles | Found Potential Leg 3041 | -9/Exiles | Found AWS/Thermal 3062 | -9/Exiles | Warned to stay clear of 0b10 Research branches 3089 | -9/Exiles | Met EX-DEC 3092 | -9/Exiles | Learned location of Zion (-6) 3176 | -9/Exiles | Discovered new exit (range 14) 3188 | -9/Exiles | Stole two prototypes: AWS/Thermal, Potential Leg 3188 | -9/Exiles | Entered Mines 3599 | -8/Mines | Discovered exit to Materials (range 9) 3607 | -8/Mines | Entered Materials 3607 | -8/Materials | Evolved 2 slots: Utility x2 3608 | -8/Materials | Loaded intel: 1 garrison access location 3703 | -8/Materials | Identified exit to Garrison 4037 | -8/Materials | Entered Garrison 4164 | -8/Garrison | Spotted B-75 Beast 4270 | -8/Garrison | Installed Relay Interface Framework 4346 | -8/Garrison | Triggered checkpoint 4384 | -8/Garrison | Discovered new exit (range 9) 4452 | -8/Garrison | Triggered checkpoint 4452 | -8/Garrison | Triggered checkpoint 4455 | -8/Garrison | Triggered checkpoint 4650 | -8/Garrison | Triggered checkpoint 4650 | -8/Garrison | Discovered new exit (range 13) 4669 | -8/Garrison | Expanded RIF knowledge: Program Shield 4705 | -8/Garrison | Triggered checkpoint 4849 | -8/Garrison | Discovered new exit (range 11) 4890 | -8/Garrison | Identified exit to Materials 4891 | -8/Garrison | Entered Materials 5015 | -8/Materials | Lost 3 parts (1p2w) 5131 | -8/Materials | Core integrity fell below 50% 5141 | -8/Materials | Identified exit to Garrison 5141 | -8/Materials | Entered Garrison 5169 | -8/Garrison | Spotted B-75 Beast 5169 | -8/Garrison | Spotted B-75 Beast 5190 | -8/Garrison | Triggered checkpoint 5213 | -8/Garrison | Expanded RIF knowledge: Watcher Feeds 5244 | -8/Garrison | Garrison Relay disabled 5288 | -8/Garrison | Triggered checkpoint 5317 | -8/Garrison | Garrison Relay disabled 5434 | -8/Garrison | Triggered checkpoint 5471 | -8/Garrison | Discovered new exit (range 9) 5492 | -8/Garrison | Identified exit to Factory 5548 | -8/Garrison | Triggered checkpoint 5570 | -8/Garrison | Build established: Bothacker-Mutant 5620 | -8/Garrison | Entered Factory 5620 | -7/Factory | Evolved 2 slots: Utility x2 5622 | -7/Factory | FarCom data flow suspended 5725 | -7/Factory | Identified exit to Garrison 6001 | -7/Factory | Lost 3 parts (1p2u) 6176 | -7/Factory | Identified exit to Storage 6176 | -7/Factory | Identified exit to Lower Caves 6372 | -7/Factory | Found Prototype Launcher 6372 | -7/Factory | Identified Rocket Array 6575 | -7/Factory | Lost 3 parts (1p1n1u) 6700 | -7/Factory | Garrison activated, responded to threat 6785 | -7/Factory | Lost 5 parts (2n2u1w) 6975 | -7/Factory | Cargo convoy interrupted 6994 | -7/Factory | Entered Garrison 6994 | -7/Garrison | Accompanied by 1 ally 7018 | -7/Garrison | Expanded RIF knowledge: Autooverride 7226 | -7/Garrison | Triggered checkpoint 7229 | -7/Garrison | Garrison Relay disabled 7400 | -7/Garrison | Triggered checkpoint 7403 | -7/Garrison | Triggered checkpoint 7407 | -7/Garrison | Triggered checkpoint 7694 | -7/Garrison | Discovered new exit (range 10) 7742 | -7/Garrison | Triggered checkpoint 7803 | -7/Garrison | Garrison Relay disabled 7810 | -7/Garrison | Triggered checkpoint 7982 | -7/Garrison | Expanded RIF knowledge: Signal Jamming 8128 | -7/Garrison | Entered Factory 8130 | -7/Factory | Build established: Botlord-Mutant 8457 | -7/Factory | Garrison activated, responded to threat 8658 | -7/Factory | Build established: Bothacker-Mutant 8912 | -7/Factory | Discovered exit to Storage (range 12) 9032 | -7/Factory | Discovered exit to Storage (range 5) 9162 | -7/Factory | Core integrity fell below 50% 9194 | -7/Factory | Build established: Bothacker-Skirmisher 9355 | -7/Factory | Identified Exp. Sensor Array 9667 | -7/Factory | Build established: Bothacker-Mutant 9707 | -7/Factory | Entered Lower Caves 9929 | -7/Lower Caves | Encountered a Warlord checkpoint 10006 | -7/Lower Caves | Build established: Scavenger-Mutant 10118 | -7/Lower Caves | Identified exit to Lower Caves 10491 | -7/Lower Caves | Learned Factory terminal intel 10854 | -7/Lower Caves | Entered another Lower Caves area 11074 | -7/Lower Caves | Learned Factory interactive machine intel 11115 | -7/Lower Caves | A Commander dispatched an escort 11225 | -7/Lower Caves | Attracted the attention of an 0b10 checkpoint 11531 | -7/Lower Caves | Build established: Mutant 11746 | -7/Lower Caves | Spotted 99-ES9(f) 11747 | -7/Lower Caves | Spotted 5Z-U3V(f) 11748 | -7/Lower Caves | Encountered a Master Thief 11748 | -7/Lower Caves | Encountered a Master Thief 11748 | -7/Lower Caves | Spotted WA-DWN(f) 11748 | -7/Lower Caves | Spotted 9O-0SO(f) 11749 | -7/Lower Caves | Encountered a Master Thief 11749 | -7/Lower Caves | Encountered a Master Thief 11749 | -7/Lower Caves | Exp. Sensor Array stolen by Master Thief 11750 | -7/Lower Caves | Antimatter Reactor stolen by Master Thief 11754 | -7/Lower Caves | Dirty Bomb Trap stolen by Master Thief 11756 | -7/Lower Caves | Fire Trap stolen by Master Thief 11777 | -7/Lower Caves | Discovered new exit (range 15) 11816 | -7/Lower Caves | Entered Data Miner 11816 | -7/Data Miner | Discovered new exit (range 6) 11867 | -7/Data Miner | Met Data Miner 11909 | -7/Data Miner | Learned location of Section 7 (-2) 11909 | -7/Data Miner | Acquired the access code to Warlord's prototype stash 11952 | -7/Data Miner | Received God Mode back door access code from Data Miner 11989 | -7/Data Miner | Destroyed Data Miner 11994 | -7/Data Miner | Found Prototype Hackware 11994 | -7/Data Miner | Identified Quantum Router 11998 | -7/Data Miner | Found Prototype Hackware 11998 | -7/Data Miner | Identified System Mapper 11999 | -7/Data Miner | Interfaced with the Data Conduit 12128 | -7/Data Miner | Entered Proximity Caves 12130 | -6/Proximity Caves | Spotter reported a threat 12131 | -6/Proximity Caves | Spotter reported a threat 12250 | -6/Proximity Caves | Destroyed 7 combat bots 12282 | -6/Proximity Caves | Build established: Hacker-Mutant 12316 | -6/Proximity Caves | Discovered new exit (range 4) 12318 | -6/Proximity Caves | Entered Factory 12318 | -6/Factory | Evolved 2 slots: Utility x2 12319 | -6/Factory | Loaded intel: 258 machine locations 12320 | -6/Factory | Loaded intel: 52 interactive machine locations 12321 | -6/Factory | Loaded intel: 26 terminal locations 12431 | -6/Factory | Lost 4 parts (1n1u2w) 12462 | -6/Factory | Identified exit to Garrison 12465 | -6/Factory | Entered Garrison 12466 | -6/Garrison | Loaded intel: 44 machine locations 12483 | -6/Garrison | Triggered checkpoint 12490 | -6/Garrison | Spotted B-75 Beast 12490 | -6/Garrison | Spotted B-75 Beast 12512 | -6/Garrison | Expanded RIF knowledge: Coupler Efficiency 12529 | -6/Garrison | Core integrity fell below 50% 12566 | -6/Garrison | Discovered new exit (range 2) 12567 | -6/Garrison | Entered Factory 12568 | -6/Factory | Loaded intel: 329 machine locations 12603 | -6/Factory | Spotted B-75 Beast 12655 | -6/Factory | Identified exit to Garrison 12745 | -6/Factory | Identified exit to Garrison 12818 | -6/Factory | Core integrity fell below 20% 12862 | -6/Factory | Entered Garrison 12863 | -6/Garrison | Loaded intel: 37 machine locations 12869 | -6/Garrison | Expanded RIF knowledge: Zone Cloak 12881 | -6/Garrison | Spotted B-90 Cyclops 12935 | -6/Garrison | Spotted B-75 Beast 12941 | -6/Garrison | Triggered checkpoint 12945 | -6/Garrison | Destroyed by G-50 Soldier with Heavy Laser Last Messages --------------- LOCATION=GARRISON GOAL=ESCAPE 12862_ Detecting nearby RIF Installer. Loading Garrison machine intel (x37)... Initiating installation procedure... 12869_ Expanded RIF knowledge: Zone Cloak. 12882_ RFUR0FBEIOP8T84%QA2M6ZM8PT31O 12896_ Slug penetrates Wall. 12898_ Slug penetrates Machine. 12908_ Acquired Cmb. Antigrav System. 12911_ Acquired Lgt. Particle Reactor. 12912_ Dropped Imp. Datajack. 12936_ Slug penetrates Wall. 12936_ Penetrated by Slug. 12936_ Biomechanical Wings destroyed. 12939_ Penetrated by Slug. 12939_ Slug penetrates Wall. 12941_ Garrison Door breached. 12941_ Beams of light sweep through the air. An alarm sounds. 12942_ Slug penetrates Reinforced Barrier. Map ----- +----------------------------------------------------+ | ????????????????????????# #? | | ????????????????????????# ###################"##? | | "???????????????????????# #?????????????????? #? | | ????????????????????????# #??????????????""??? | | ??????T?????????????????# #??????????????"???? | | ????????????????????????# #??????????????"????? | | ????????????????????????# #??????????????"????? | | ????????????????????????# #??????????????"?????? | | ?????????????######""""## ##?????????????"?????? | | ??????????? #?????????????"??????? | | ??????????? #?????????????""?????? | | ??????????? #?????????????"""????" | | ????????????## ## ## #?????????????"""""""" | | ?????????????# ## ## ###??????????????????? | | ?????????????" #??????????????????? | | ?????????????" #??????????????????? | | ?????????????" #??????????????????? | | ?????????????" #???""""""?????????? | | ?????????????# ## ## gg#?????"?""?"???"?????? | | ????????????## ## ## #?????"?""?"???"?????? | | ???????????? #?????"?""?"???"?????? | | ???????????? #??????????????"?????? | | ?????????????# #?????"?""?"???"?????? | | ?????????????## ##""""## ##?????"?""?"?????????? | | ??????????????# ????????# #??????"?""?"?????????? | | ????????????????????????#@ #??????""""""??????"??? | | ????????????????????????# #??????????????????"??? | | ????????????????????????# #??????????????????"??? | | ????????????????????????# #?????????????????????? | | ????????????????????????# #?????????????????????? | | ????????????????????????# #?????????????????????? | | ????????????????????????# ?????????????????????? | | ????????????????????????# ?????????????????????? | | ????????????????????????####?????????????????????? | | ?????????????????????????????????????????????????? | | ?????????????????????????????????????????????????? | | ?????????????????????????????????????????????????? | | ?????????????????????????????????????????????????? | | ?????????????????????????????????????????????????? | | ?????????????????????????????????????????????????? | | ?????????????????????????????????????????????????? | | ?????????????????????????????????????????????????? | | ?????????"???????????????????????????????????????? | | ?????????"???????????????????????????????????????? | | ?????????"???????????????????????????????????????? | | ?????????????????????????????????????????????????? | | ?????????????????????????????????????????????????? | | ?????????????????????????????????????????????????? | | ?????????????????????????????????????????????????? | | ??"""""??????????????????????????????????????????? | +----------------------------------------------------+ Best States ------------- Heat Dissipation 51 Energy Generation 21 Energy Capacity 325 Matter Stores 300 Matter Capacity 300 Sight Range 16 Terrain Scan Range 14 Terrain Scan Density 210 Armor Coverage 600 Core Shielding 20 Evasion (%) 66 Targeting Accuracy 12 Melee Accuracy 6 Launcher Accuracy 40 Target Analysis 5 Recoil Reduction 2 Offensive Hacking 20 Defensive Hacking 25 Relay Coupler Types 4 Relay Coupler Value 119 Authchip Count 1 Item Schematics ----------------- Combat Drone Bay | -7/Data Miner | Free Lgt. Regenerative Plating | -7/Data Miner | Free Cld. Aerolev Unit | -7/Data Miner | Free Gravity Neutralizer | -7/Data Miner | Free Imp. Heavy Laser | -7/Data Miner | Free Antigrav System | -7/Data Miner | Free Imp. Recalibrator | -7/Data Miner | Free Lance | -7/Data Miner | Free Imp. Remote Datajack | -7/Data Miner | Free Imp. Remote Shield | -7/Data Miner | Free Adv. Power Amplifier | -7/Data Miner | Free Robot Schematics ------------------ M-22 Extractor | -7/Data Miner | Free H-66 Slayer | -7/Data Miner | Free S-27 Virus | -7/Data Miner | Free O-24 Administrator | -7/Data Miner | Free G-50 Soldier | -7/Data Miner | Free A-15 Conveyor | -7/Data Miner | Free Fabricated ------------ Nothing Alien Tech Used ----------------- None Achievements -------------- None Challenges ------------ None Game ------ Seed ArmageddonDamperRecalibrator Manual? 0 Play Time 01:49:34 Cumulative 420.2 hours Start 2023.04.28 @ 01:42:31 End 2023.04.28 @ 12:33:26 Sessions 3 Manual Loads 0 Difficulty Rogue Special Mode None Game No. 456 Rogue 456 Adventurer 0 Explorer 0 Win Type - Total 12 Types 8/0/3/1/0/0/0/0/0 Lore% 82 Gallery% 90 Achievement% 80 Wizard Run 0 Options --------- ASCII 0 Keyboard 0 Movement Numpad Keybinds 0 Fullscreen 1 Font 18/Terminus Map View 76x50 Tactical HUD 1 Map Filters NONE Filters NONE Steam 1 RUN: 01857909-e745-40b3-bd38-0a02dfc162b5